[Event "9th RTU Rapid 2019"]
[Site "Riga"]
[Date "2019.08.04"]
[Round "5.27"]
[White "Low, Zhen Yu Cyrus"]
[Black "Grineva, Marianna"]
[Result "1-0"]
[WhiteElo "2169"]
[BlackElo "2035"]
[PlyCount "63"]
[EventDate "2019.08.05"]
[EventType "swiss"]
[EventCountry "LAT"]
[TimeControl "5400+30"]
[WhiteClock "0:03:16"]
[BlackClock "0:08:52"]

1. e4 {[%emt 1:15:23]} d6 {[%emt 1:15:26]} 2. d4 {[%emt 0:00:27]} Nf6 {[%emt 0:00:26]} 3. Nc3 {[%emt 0:00:27]} g6 {[%emt 0:00:27]} 4. f4 {[%emt 0:00:26]} Bg7 {[%emt 0:00:27]} 5. Bd3 {[%emt 0:00:26]} O-O {[%emt 0:00:37]} 6. Nf3 {[%emt 0:00:28]} Bg4 {[%emt 0:00:44]} 7. h3 {[%emt 0:01:31]} Bxf3 {[%emt 0:00:45]} 8. Qxf3 {[%emt 0:00:27]} Nc6 {[%emt 0:00:26]} 9. Be3 {[%emt 0:00:36]} Nd7 {[%emt 0:00:43]} 10. e5 {[%emt 0:00:50]} e6 {[%emt 0:01:08]} 11. O-O-O {[%emt 0:00:42]} Nb4 {[%emt 0:01:10]} 12. g4 {[%emt 0:00:36]} Nxd3+ {[%emt 0:01:28]} 13. Rxd3 {[%emt 0:00:28]} Nb6 {[%emt 0:01:04]} 14. Kb1 {[%emt 0:01:03]} Nc4 {[%emt 0:00:41]} 15. Bc1 {[%emt 0:00:26]} f6 {[%emt 0:01:39]} 16. exd6 {[%emt 0:00:58]} cxd6 {[%emt 0:01:00]} 17. f5 {[%emt 0:00:28]} Qb6 {[%emt 0:01:01]} 18. Nd5 {[%emt 0:00:48]} exd5 {[%emt 0:02:06]} 19. Qxd5+ {[%emt 0:00:27]} Kh8 {[%emt 0:00:26]} 20. Qxc4 {[%emt 0:00:27]} Rac8 {[%emt 0:00:27]} 21. Qb3 {[%emt 0:00:34]} Qc6 {[%emt 0:00:32]} 22. Re1 {[%emt 0:00:38]} Qg2 {[%emt 0:01:19]} 23. Rd2 {[%emt 0:00:38]} Qc6 {[%emt 0:00:32]} 24. Rde2 {[%emt 0:00:34]} Rc7 {[%emt 0:00:46]} 25. h4 {[%emt 0:01:06]} a5 {[%emt 0:00:38]} 26. Qd3 {[%emt 0:00:32]} gxf5 {[%emt 0:01:17]} 27. Qxf5 {[%emt 0:00:35]} Qa4 {[%emt 0:00:43]} 28. h5 {[%emt 0:00:38]} h6 {[%emt 0:00:58]} 29. Qg6 {[%emt 0:02:52]} Qxd4 {[%emt 0:01:44]} 30. Re7 {[%emt 0:00:45]} Rxe7 {[%emt 0:01:07]} 31. Rxe7 {[%emt 0:00:26]} f5 {[%emt 0:00:27]} 32. g5 {[%emt 0:00:26]} 1-0

[Event "9th RTU Rapid 2019"]
[Site "Riga"]
[Date "2019.08.04"]
[Round "5.28"]
[White "Ciolek, Andreas"]
[Black "Kolesnikovs, Ivans"]
[Result "1-0"]
[WhiteElo "2158"]
[BlackElo "2013"]
[PlyCount "65"]
[EventDate "2019.08.05"]
[EventType "swiss"]
[EventCountry "LAT"]
[TimeControl "5400+30"]
[WhiteClock "0:00:51"]
[BlackClock "0:09:51"]

1. e4 {[%emt 1:15:27]} e6 {[%emt 1:15:41]} 2. Qe2 {[%emt 0:00:31]} c5 {[%emt 0:01:29]} 3. g3 {[%emt 0:00:29]} Nc6 {[%emt 0:01:49]} 4. Nf3 {[%emt 0:00:28]} d6 {[%emt 0:00:51]} 5. Bg2 {[%emt 0:00:27]} Nf6 {[%emt 0:00:29]} 6. O-O {[%emt 0:00:28]} e5 {[%emt 0:01:57]} 7. c3 {[%emt 0:00:28]} Be7 {[%emt 0:00:42]} 8. Rd1 {[%emt 0:01:13]} Bg4 {[%emt 0:00:37]} 9. h3 {[%emt 0:00:35]} Bh5 {[%emt 0:00:46]} 10. d3 {[%emt 0:00:29]} O-O {[%emt 0:00:36]} 11. Nbd2 {[%emt 0:00:44]} Re8 {[%emt 0:00:39]} 12. Nf1 {[%emt 0:00:28]} b5 {[%emt 0:01:09]} 13. g4 {[%emt 0:00:39]} Bg6 {[%emt 0:00:27]} 14. Ng3 {[%emt 0:00:26]} Bf8 {[%emt 0:00:42]} 15. Nf5 {[%emt 0:00:40]} Bxf5 {[%emt 0:01:04]} 16. gxf5 {[%emt 0:00:34]} Qc7 {[%emt 0:01:58]} 17. Kh1 {[%emt 0:00:59]} d5 {[%emt 0:00:49]} 18. Bg5 {[%emt 0:00:30]} dxe4 {[%emt 0:00:39]} 19. dxe4 {[%emt 0:00:27]} Nd7 {[%emt 0:01:35]} 20. Nd2 {[%emt 0:00:36]} c4 {[%emt 0:00:55]} 21. Nf1 {[%emt 0:00:41]} f6 {[%emt 0:00:46]} 22. Be3 {[%emt 0:00:34]} Nc5 {[%emt 0:00:29]} 23. Rd5 {[%emt 0:01:02]} Na5 {[%emt 0:01:38]} 24. Rad1 {[%emt 0:00:45]} a6 {[%emt 0:00:33]} 25. Bxc5 {[%emt 0:00:33]} Bxc5 {[%emt 0:00:26]} 26. Rd7 {[%emt 0:00:26]} Qb6 {[%emt 0:00:32]} 27. Qh5 {[%emt 0:01:18]} Re7 {[%emt 0:01:16]} 28. Rxe7 {[%emt 0:00:51]} Bxe7 {[%emt 0:00:26]} 29. Rd7 {[%emt 0:00:27]} Bf8 {[%emt 0:01:17]} 30. Ne3 {[%emt 0:00:50]} Kh8 {[%emt 0:00:46]} 31. Nd5 {[%emt 0:01:02]} Qc6 {[%emt 0:01:21]} 32. Rf7 {[%emt 0:00:52]} Rd8 {[%emt 0:00:45]} 33. Nxf6 {[%emt 0:00:40]} 1-0

[Event "9th RTU Rapid 2019"]
[Site "Riga"]
[Date "2019.08.04"]
[Round "5.29"]
[White "Low, Kevin"]
[Black "Mohite, Ranveer"]
[Result "0-1"]
[WhiteElo "2153"]
[BlackElo "1935"]
[PlyCount "98"]
[EventDate "2019.08.05"]
[EventType "swiss"]
[EventCountry "LAT"]
[TimeControl "5400+30"]
[WhiteClock "0:01:42"]
[BlackClock "0:03:18"]

1. e4 {[%emt 1:15:22]} c5 {[%emt 1:15:23]} 2. Nf3 {[%emt 0:00:26]} Nc6 {[%emt 0:00:26]} 3. Bb5 {[%emt 0:00:31]} g6 {[%emt 0:00:27]} 4. c3 {[%emt 0:00:26]} Bg7 {[%emt 0:00:34]} 5. O-O {[%emt 0:01:03]} d6 {[%emt 0:00:33]} 6. d4 {[%emt 0:01:11]} cxd4 {[%emt 0:01:41]} 7. cxd4 {[%emt 0:00:29]} a6 {[%emt 0:00:28]} 8. Ba4 {[%emt 0:01:11]} Bd7 {[%emt 0:00:36]} 9. Nc3 {[%emt 0:00:28]} b5 {[%emt 0:00:55]} 10. Bc2 {[%emt 0:00:41]} Nf6 {[%emt 0:00:55]} 11. Re1 {[%emt 0:00:29]} O-O {[%emt 0:00:45]} 12. h3 {[%emt 0:00:55]} b4 {[%emt 0:01:11]} 13. Ne2 {[%emt 0:01:03]} e5 {[%emt 0:01:20]} 14. Ng3 {[%emt 0:02:34]} a5 {[%emt 0:00:56]} 15. dxe5 {[%emt 0:01:03]} dxe5 {[%emt 0:00:31]} 16. Ba4 {[%emt 0:00:35]} Qe7 {[%emt 0:01:46]} 17. Be3 {[%emt 0:00:41]} Rac8 {[%emt 0:01:05]} 18. Rc1 {[%emt 0:00:46]} Nb8 {[%emt 0:00:55]} 19. Bxd7 {[%emt 0:01:24]} Nbxd7 {[%emt 0:00:26]} 20. Qa4 {[%emt 0:00:29]} Rfd8 {[%emt 0:02:06]} 21. Rxc8 {[%emt 0:01:33]} Rxc8 {[%emt 0:00:27]} 22. Qxa5 {[%emt 0:00:36]} Rc2 {[%emt 0:01:13]} 23. Rb1 {[%emt 0:00:41]} Qd6 {[%emt 0:00:44]} 24. Qb5 {[%emt 0:00:41]} Qe6 {[%emt 0:01:30]} 25. Qa4 {[%emt 0:00:55]} Rc4 {[%emt 0:01:06]} 26. Nd2 {[%emt 0:00:27]} Rc6 {[%emt 0:00:38]} 27. Qxb4 {[%emt 0:00:32]} Qxa2 {[%emt 0:00:29]} 28. Qb5 {[%emt 0:01:09]} Rc2 {[%emt 0:01:09]} 29. Qb3 {[%emt 0:00:39]} Qxb3 {[%emt 0:00:27]} 30. Nxb3 {[%emt 0:00:26]} h5 {[%emt 0:00:26]} 31. f3 {[%emt 0:00:34]} Bf8 {[%emt 0:00:33]} 32. Na1 {[%emt 0:00:35]} Rc4 {[%emt 0:00:46]} 33. b3 {[%emt 0:00:37]} Rc3 {[%emt 0:00:26]} 34. Bf2 {[%emt 0:00:52]} Nc5 {[%emt 0:00:39]} 35. Ne2 {[%emt 0:00:52]} Rd3 {[%emt 0:00:37]} 36. b4 {[%emt 0:00:26]} Na4 {[%emt 0:00:51]} 37. b5 {[%emt 0:00:39]} Nd7 {[%emt 0:00:27]} 38. b6 {[%emt 0:00:30]} Naxb6 {[%emt 0:00:31]} 39. Bxb6 {[%emt 0:00:48]} Nxb6 {[%emt 0:00:27]} 40. Kh2 {[%emt 0:00:34]} Nc4 {[%emt 0:00:35]} 41. Rc1 {[%emt 0:00:34]} Ne3 {[%emt 0:00:53]} 42. Nc2 {[%emt 0:00:37]} Bh6 {[%emt 0:01:16]} 43. Nxe3 {[%emt 0:00:30]} Rxe3 {[%emt 0:00:34]} 44. Rc2 {[%emt 0:00:30]} Ra3 {[%emt 0:00:30]} 45. Kg3 {[%emt 0:00:42]} Kg7 {[%emt 0:00:28]} 46. Kf2 {[%emt 0:00:48]} Bg5 {[%emt 0:00:30]} 47. g4 {[%emt 0:00:33]} h4 {[%emt 0:00:44]} 48. Rc5 {[%emt 0:00:36]} Be3+ {[%emt 0:00:27]} 49. Kg2 {[%emt 0:00:29]} Bxc5 {[%emt 0:00:26]} 0-1

[Event "9th RTU Rapid 2019"]
[Site "Riga"]
[Date "2019.08.04"]
[Round "5.30"]
[White "Efremov, Vladislav"]
[Black "Petrovskis, Olegs"]
[Result "1/2-1/2"]
[WhiteElo "1956"]
[BlackElo "2147"]
[PlyCount "58"]
[EventDate "2019.08.05"]
[EventType "swiss"]
[EventCountry "LAT"]
[TimeControl "5400+30"]
[WhiteClock "0:03:22"]
[BlackClock "0:05:11"]

1. d4 {[%emt 1:15:21]} d5 {[%emt 1:15:21]} 2. c4 {[%emt 0:00:26]} c6 {[%emt 0:00:26]} 3. Nf3 {[%emt 0:00:28]} Nf6 {[%emt 0:00:26]} 4. Qb3 {[%emt 0:00:26]} e6 {[%emt 0:00:40]} 5. Bg5 {[%emt 0:00:30]} Nbd7 {[%emt 0:00:27]} 6. Nbd2 {[%emt 0:01:29]} Be7 {[%emt 0:00:28]} 7. e3 {[%emt 0:00:28]} h6 {[%emt 0:00:36]} 8. Bh4 {[%emt 0:00:27]} b6 {[%emt 0:00:26]} 9. cxd5 {[%emt 0:00:41]} exd5 {[%emt 0:00:27]} 10. Bd3 {[%emt 0:00:49]} Bb7 {[%emt 0:00:27]} 11. O-O {[%emt 0:00:28]} O-O {[%emt 0:00:27]} 12. Rac1 {[%emt 0:00:52]} c5 {[%emt 0:00:32]} 13. Qd1 {[%emt 0:00:29]} Re8 {[%emt 0:00:32]} 14. dxc5 {[%emt 0:00:48]} Nxc5 {[%emt 0:00:36]} 15. Nb3 {[%emt 0:00:38]} Nxd3 {[%emt 0:01:15]} 16. Qxd3 {[%emt 0:00:26]} Ne4 {[%emt 0:00:35]} 17. Bxe7 {[%emt 0:00:33]} Qxe7 {[%emt 0:00:27]} 18. Nbd4 {[%emt 0:00:40]} Rac8 {[%emt 0:00:39]} 19. Qb1 {[%emt 0:00:58]} Rc5 {[%emt 0:01:14]} 20. Nb3 {[%emt 0:00:44]} Rc4 {[%emt 0:01:04]} 21. Nbd4 {[%emt 0:03:15]} Rec8 {[%emt 0:01:27]} 22. Rc2 {[%emt 0:00:58]} Rxc2 {[%emt 0:00:44]} 23. Nxc2 {[%emt 0:00:40]} Ba6 {[%emt 0:00:54]} 24. Rc1 {[%emt 0:01:05]} Bd3 {[%emt 0:03:43]} 25. Nfe1 {[%emt 0:01:33]} Nd2 {[%emt 0:03:24]} 26. Qa1 {[%emt 0:00:26]} Be4 {[%emt 0:01:15]} 27. Nd4 {[%emt 0:01:43]} Rc5 {[%emt 0:00:46]} 28. b3 {[%emt 0:01:28]} Bg6 {[%emt 0:01:20]} 29. Qb2 {[%emt 0:00:34]} Ne4 1/2-1/2

[Event "9th RTU Rapid 2019"]
[Site "Riga"]
[Date "2019.08.04"]
[Round "5.31"]
[White "Stabulnieks, Klavs"]
[Black "Germanovs, Georgijs"]
[Result "0-1"]
[WhiteElo "2136"]
[BlackElo "1911"]
[PlyCount "84"]
[EventDate "2019.08.05"]
[EventType "swiss"]
[EventCountry "LAT"]
[TimeControl "5400+30"]
[WhiteClock "0:09:10"]
[BlackClock "0:00:10"]

1. d4 {[%emt 1:15:22]} Nf6 {[%emt 1:15:21]} 2. c4 {[%emt 0:00:27]} c5 {[%emt 0:00:26]} 3. d5 {[%emt 0:00:27]} b5 {[%emt 0:00:26]} 4. cxb5 {[%emt 0:00:28]} a6 {[%emt 0:00:26]} 5. bxa6 {[%emt 0:00:27]} Bxa6 {[%emt 0:00:27]} 6. Nc3 {[%emt 0:00:27]} d6 {[%emt 0:00:28]} 7. Nf3 {[%emt 0:00:28]} g6 {[%emt 0:00:26]} 8. e4 {[%emt 0:00:26]} Bxf1 {[%emt 0:00:28]} 9. Kxf1 {[%emt 0:00:27]} Bg7 {[%emt 0:00:27]} 10. g3 {[%emt 0:00:27]} Nbd7 {[%emt 0:00:27]} 11. Kg2 {[%emt 0:00:27]} O-O {[%emt 0:00:34]} 12. a4 {[%emt 0:00:27]} Qc7 {[%emt 0:00:32]} 13. Nb5 {[%emt 0:01:03]} Qb7 {[%emt 0:00:31]} 14. Qe2 {[%emt 0:00:45]} Ra6 {[%emt 0:00:51]} 15. Ra3 {[%emt 0:00:57]} Nb6 {[%emt 0:00:48]} 16. b3 {[%emt 0:00:54]} Rc8 {[%emt 0:00:49]} 17. Nd2 {[%emt 0:02:10]} Nfd7 {[%emt 0:01:21]} 18. h4 {[%emt 0:01:24]} h5 {[%emt 0:00:35]} 19. f4 {[%emt 0:03:07]} f5 {[%emt 0:00:41]} 20. Kh2 {[%emt 0:02:18]} Nf6 {[%emt 0:00:59]} 21. exf5 {[%emt 0:01:20]} Ng4+ {[%emt 0:00:38]} 22. Kh3 {[%emt 0:00:29]} Qxd5 {[%emt 0:00:28]} 23. Re1 {[%emt 0:01:05]} Qxf5 {[%emt 0:01:03]} 24. Kg2 {[%emt 0:01:28]} Nd5 {[%emt 0:00:52]} 25. Nf3 {[%emt 0:00:38]} Rb6 {[%emt 0:01:23]} 26. Ng5 {[%emt 0:01:02]} Kh8 {[%emt 0:00:49]} 27. Ra2 {[%emt 0:02:51]} Rxb5 {[%emt 0:00:31]} 28. axb5 {[%emt 0:00:47]} Nc3 {[%emt 0:00:27]} 29. Qc2 {[%emt 0:00:38]} Qd5+ {[%emt 0:00:52]} 30. Nf3 {[%emt 0:00:28]} Nxa2 {[%emt 0:00:35]} 31. Qxa2 {[%emt 0:00:30]} Ra8 {[%emt 0:00:29]} 32. Qc2 {[%emt 0:00:30]} e5 {[%emt 0:00:40]} 33. fxe5 {[%emt 0:00:54]} Nxe5 {[%emt 0:00:44]} 34. Re4 {[%emt 0:01:15]} Ra2 {[%emt 0:01:22]} 35. Qxa2 {[%emt 0:00:26]} Qxe4 {[%emt 0:00:26]} 36. Qf2 {[%emt 0:00:33]} Nd3 {[%emt 0:00:29]} 37. Qf1 {[%emt 0:00:28]} Nxc1 {[%emt 0:00:30]} 38. Qxc1 {[%emt 0:00:26]} Qe2+ {[%emt 0:00:27]} 39. Kh3 {[%emt 0:00:37]} Qxf3 {[%emt 0:00:27]} 40. Qe1 {[%emt 0:00:31]} Qxb3 {[%emt 0:00:40]} 41. Qe8+ {[%emt 0:00:30]} Kh7 {[%emt 0:00:26]} 42. Qe2 {[%emt 0:00:26]} c4 {[%emt 0:00:29]} 0-1

[Event "9th RTU Rapid 2019"]
[Site "Riga"]
[Date "2019.08.04"]
[Round "5.32"]
[White "Jeet, Jain"]
[Black "Laimins, Lauris"]
[Result "1-0"]
[WhiteElo "1828"]
[BlackElo "2123"]
[PlyCount "79"]
[EventDate "2019.08.05"]
[EventType "swiss"]
[EventCountry "LAT"]
[TimeControl "5400+30"]
[WhiteClock "0:01:06"]
[BlackClock "0:08:44"]

1. e4 {[%emt 1:15:22]} Nf6 {[%emt 1:15:27]} 2. d3 {[%emt 0:00:55]} d5 {[%emt 0:00:30]} 3. Nd2 {[%emt 0:00:33]} c5 {[%emt 0:00:36]} 4. g3 {[%emt 0:00:30]} Nc6 {[%emt 0:00:27]} 5. Bg2 {[%emt 0:00:26]} e6 {[%emt 0:00:50]} 6. Ngf3 {[%emt 0:00:26]} Be7 {[%emt 0:00:29]} 7. O-O {[%emt 0:00:27]} O-O {[%emt 0:00:33]} 8. Qe2 {[%emt 0:00:43]} Qc7 {[%emt 0:00:28]} 9. Re1 {[%emt 0:00:32]} Re8 {[%emt 0:00:30]} 10. e5 {[%emt 0:00:33]} Nd7 {[%emt 0:00:27]} 11. c4 {[%emt 0:00:26]} Nb6 {[%emt 0:00:32]} 12. h4 {[%emt 0:00:33]} Bd7 {[%emt 0:00:56]} 13. h5 {[%emt 0:00:34]} Rad8 {[%emt 0:00:30]} 14. Nf1 {[%emt 0:01:15]} dxc4 {[%emt 0:00:37]} 15. dxc4 {[%emt 0:00:27]} Nd4 {[%emt 0:00:29]} 16. Nxd4 {[%emt 0:00:31]} cxd4 {[%emt 0:00:26]} 17. b3 {[%emt 0:00:28]} Bc6 {[%emt 0:00:27]} 18. Bf4 {[%emt 0:01:46]} Nd7 {[%emt 0:00:41]} 19. Nh2 {[%emt 0:00:40]} Bxg2 {[%emt 0:00:56]} 20. Kxg2 {[%emt 0:00:26]} Qc6+ {[%emt 0:00:27]} 21. Kg1 {[%emt 0:00:50]} d3 {[%emt 0:01:19]} 22. Qg4 {[%emt 0:00:35]} Kh8 {[%emt 0:00:37]} 23. Rad1 {[%emt 0:00:35]} Nc5 {[%emt 0:03:16]} 24. h6 {[%emt 0:00:32]} g6 {[%emt 0:00:29]} 25. Nf3 {[%emt 0:00:31]} a5 {[%emt 0:01:01]} 26. Bg5 {[%emt 0:00:47]} Qc7 {[%emt 0:00:32]} 27. Qf4 {[%emt 0:00:32]} Kg8 {[%emt 0:00:32]} 28. Bf6 {[%emt 0:00:49]} b6 {[%emt 0:04:37]} 29. Ng5 {[%emt 0:00:57]} Rf8 {[%emt 0:01:25]} 30. Bg7 {[%emt 0:00:39]} Bxg5 {[%emt 0:01:48]} 31. Qxg5 {[%emt 0:00:26]} Rfe8 {[%emt 0:00:28]} 32. Bf6 {[%emt 0:01:04]} Rd4 {[%emt 0:00:31]} 33. Qe3 {[%emt 0:01:29]} Qd7 {[%emt 0:01:01]} 34. Rd2 {[%emt 0:00:33]} Re4 {[%emt 0:00:40]} 35. Qxe4 {[%emt 0:00:27]} Nxe4 {[%emt 0:00:25]} 36. Rxe4 {[%emt 0:00:27]} b5 {[%emt 0:01:30]} 37. Re3 {[%emt 0:00:58]} bxc4 {[%emt 0:00:28]} 38. bxc4 {[%emt 0:00:26]} Qc6 {[%emt 0:01:01]} 39. Rexd3 {[%emt 0:00:27]} Qe4 {[%emt 0:00:26]} 40. Rd8 {[%emt 0:00:39]} 1-0

[Event "9th RTU Rapid 2019"]
[Site "Riga"]
[Date "2019.08.04"]
[Round "5.33"]
[White "Vernuks, Vjaceslavs"]
[Black "Kopylov, Daniel"]
[Result "0-1"]
[WhiteElo "1724"]
[BlackElo "2103"]
[PlyCount "50"]
[EventDate "2019.08.05"]
[EventType "swiss"]
[EventCountry "LAT"]
[TimeControl "5400+30"]
[WhiteClock "0:05:11"]
[BlackClock "0:04:15"]

1. c4 {[%emt 1:15:24]} g6 {[%emt 1:15:25]} 2. Nc3 {[%emt 0:00:28]} Nf6 {[%emt 0:00:41]} 3. g3 {[%emt 0:00:29]} Bg7 {[%emt 0:00:27]} 4. Bg2 {[%emt 0:00:29]} O-O {[%emt 0:00:30]} 5. Nf3 {[%emt 0:00:30]} d5 {[%emt 0:00:45]} 6. cxd5 {[%emt 0:00:29]} Nxd5 {[%emt 0:00:26]} 7. O-O {[%emt 0:00:29]} c5 {[%emt 0:00:35]} 8. Qb3 {[%emt 0:01:20]} e6 {[%emt 0:01:07]} 9. a3 {[%emt 0:00:47]} Nc6 {[%emt 0:00:32]} 10. d3 {[%emt 0:02:09]} b6 {[%emt 0:00:56]} 11. Nxd5 {[%emt 0:01:41]} Qxd5 {[%emt 0:02:39]} 12. Qxd5 {[%emt 0:00:37]} exd5 {[%emt 0:00:26]} 13. Rb1 {[%emt 0:00:36]} Re8 {[%emt 0:00:46]} 14. e3 {[%emt 0:00:37]} Bf5 {[%emt 0:00:33]} 15. Ne1 {[%emt 0:01:03]} Rad8 {[%emt 0:00:29]} 16. b3 {[%emt 0:01:08]} Ne5 {[%emt 0:01:32]} 17. e4 {[%emt 0:01:00]} dxe4 {[%emt 0:01:12]} 18. dxe4 {[%emt 0:00:28]} Bd7 {[%emt 0:00:58]} 19. a4 {[%emt 0:01:16]} Bc8 {[%emt 0:00:36]} 20. f4 {[%emt 0:02:08]} Ng4 {[%emt 0:01:31]} 21. Bf3 {[%emt 0:01:37]} Bd4+ {[%emt 0:02:08]} 22. Kg2 {[%emt 0:00:31]} f5 {[%emt 0:00:42]} 23. e5 {[%emt 0:01:23]} Ba6 {[%emt 0:00:41]} 24. Bxg4 {[%emt 0:00:53]} fxg4 {[%emt 0:00:58]} 25. h4 {[%emt 0:00:43]} gxh3+ {[%emt 0:00:44]} 0-1

[Event "9th RTU Rapid 2019"]
[Site "Riga"]
[Date "2019.08.04"]
[Round "6.1"]
[White "Svane, Rasmus"]
[Black "Ioannidis, Evgenios"]
[Result "1-0"]
[WhiteElo "2612"]
[BlackElo "2134"]
[PlyCount "59"]
[EventDate "2019.08.05"]
[EventType "swiss"]
[EventCountry "LAT"]
[TimeControl "5400+30"]
[WhiteClock "0:00:38"]
[BlackClock "0:02:03"]

1. d4 {[%emt 1:15:22]} d5 {[%emt 1:15:24]} 2. c4 {[%emt 0:00:27]} e6 {[%emt 0:00:28]} 3. Nf3 {[%emt 0:00:41]} Nf6 {[%emt 0:00:28]} 4. g3 {[%emt 0:00:29]} dxc4 {[%emt 0:01:27]} 5. Bg2 {[%emt 0:00:27]} Nc6 {[%emt 0:00:31]} 6. Qa4 {[%emt 0:00:39]} Bb4+ {[%emt 0:00:27]} 7. Bd2 {[%emt 0:00:27]} Nd5 {[%emt 0:00:26]} 8. Bxb4 {[%emt 0:01:15]} Ndxb4 {[%emt 0:00:26]} 9. O-O {[%emt 0:00:37]} O-O {[%emt 0:01:28]} 10. a3 {[%emt 0:01:20]} Nd5 {[%emt 0:00:32]} 11. Qxc4 {[%emt 0:00:28]} Nce7 {[%emt 0:01:19]} 12. Nbd2 {[%emt 0:01:32]} a5 {[%emt 0:00:30]} 13. Rac1 {[%emt 0:00:32]} b6 {[%emt 0:00:45]} 14. Rfe1 {[%emt 0:00:42]} Ba6 {[%emt 0:00:31]} 15. Qc2 {[%emt 0:00:36]} Rc8 {[%emt 0:01:07]} 16. e4 {[%emt 0:02:15]} Nf6 {[%emt 0:00:31]} 17. b4 {[%emt 0:00:32]} axb4 {[%emt 0:00:41]} 18. axb4 {[%emt 0:00:32]} Bb5 {[%emt 0:00:59]} 19. d5 {[%emt 0:01:54]} exd5 {[%emt 0:03:15]} 20. e5 {[%emt 0:00:26]} Ne4 21. Nxe4 {[%emt 0:00:26]} dxe4 {[%emt 0:00:53]} 22. Qxe4 {[%emt 0:00:26]} Qd3 {[%emt 0:00:26]} 23. Nd4 {[%emt 0:01:33]} c5 {[%emt 0:01:08]} 24. Nxb5 {[%emt 0:01:31]} Qxb5 {[%emt 0:00:27]} 25. e6 {[%emt 0:00:40]} Nc6 {[%emt 0:04:39]} 26. bxc5 {[%emt 0:02:03]} bxc5 {[%emt 0:00:37]} 27. exf7+ {[%emt 0:00:43]} Kh8 {[%emt 0:00:25]} 28. Bf1 {[%emt 0:02:38]} Qa5 {[%emt 0:00:43]} 29. Qf5 {[%emt 0:01:07]} Rb8 {[%emt 0:03:19]} 30. Bd3 {[%emt 0:00:37]} 1-0

[Event "9th RTU Rapid 2019"]
[Site "Riga"]
[Date "2019.08.04"]
[Round "6.2"]
[White "Korchmar, Vasiliy"]
[Black "Kopylov, Michael"]
[Result "1/2-1/2"]
[WhiteElo "2413"]
[BlackElo "2414"]
[PlyCount "37"]
[EventDate "2019.08.05"]
[EventType "swiss"]
[EventCountry "LAT"]
[TimeControl "5400+30"]
[WhiteClock "0:10:59"]
[BlackClock "0:13:33"]

1. d4 {[%emt 1:15:22]} d5 {[%emt 1:15:23]} 2. c4 {[%emt 0:00:29]} e6 {[%emt 0:00:27]} 3. Nf3 {[%emt 0:00:27]} c6 {[%emt 0:00:27]} 4. g3 {[%emt 0:00:26]} dxc4 {[%emt 0:00:29]} 5. Bg2 {[%emt 0:00:27]} b5 {[%emt 0:00:26]} 6. Ne5 {[%emt 0:00:33]} Bb7 {[%emt 0:00:31]} 7. O-O {[%emt 0:00:33]} Nd7 {[%emt 0:00:50]} 8. Nc3 {[%emt 0:01:36]} Nxe5 9. dxe5 {[%emt 0:00:26]} Qc7 {[%emt 0:02:09]} 10. a4 {[%emt 0:00:56]} a6 {[%emt 0:00:55]} 11. axb5 {[%emt 0:00:38]} cxb5 {[%emt 0:00:39]} 12. Nxb5 {[%emt 0:00:30]} axb5 {[%emt 0:00:26]} 13. Rxa8+ {[%emt 0:00:27]} Bxa8 {[%emt 0:00:25]} 14. Bxa8 {[%emt 0:00:27]} Bc5 {[%emt 0:00:44]} 15. b3 {[%emt 0:00:40]} Ne7 {[%emt 0:00:33]} 16. bxc4 {[%emt 0:00:31]} O-O {[%emt 0:00:28]} 17. Be4 {[%emt 0:00:32]} bxc4 {[%emt 0:01:20]} 18. Qc2 {[%emt 0:00:27]} Ng6 {[%emt 0:01:49]} 19. Bb2 {[%emt 0:00:37]} 1/2-1/2

[Event "9th RTU Rapid 2019"]
[Site "Riga"]
[Date "2019.08.04"]
[Round "6.3"]
[White "Gagare, Shardul"]
[Black "Gukesh D"]
[Result "1/2-1/2"]
[WhiteElo "2430"]
[BlackElo "1683"]
[PlyCount "124"]
[EventDate "2019.08.05"]
[EventType "swiss"]
[EventCountry "LAT"]
[TimeControl "5400+30"]
[WhiteClock "0:00:15"]
[BlackClock "0:01:20"]

1. Nf3 {[%emt 1:15:23]} Nf6 {[%emt 1:15:30]} 2. g3 {[%emt 0:00:27]} b6 {[%emt 0:00:35]} 3. Bg2 {[%emt 0:00:28]} Bb7 {[%emt 0:00:26]} 4. O-O {[%emt 0:00:35]} e6 {[%emt 0:00:28]} 5. c4 {[%emt 0:00:29]} Be7 {[%emt 0:00:32]} 6. d4 {[%emt 0:00:29]} O-O {[%emt 0:00:28]} 7. Re1 {[%emt 0:00:38]} d5 {[%emt 0:00:55]} 8. cxd5 {[%emt 0:00:39]} exd5 {[%emt 0:00:27]} 9. Nc3 {[%emt 0:00:31]} a6 {[%emt 0:00:29]} 10. Ne5 {[%emt 0:01:10]} Nbd7 {[%emt 0:00:50]} 11. Bf4 {[%emt 0:00:45]} Bd6 {[%emt 0:00:52]} 12. Rc1 {[%emt 0:00:36]} Re8 {[%emt 0:00:51]} 13. Nd3 {[%emt 0:01:03]} Nf8 {[%emt 0:00:35]} 14. Qb3 {[%emt 0:00:41]} Ne6 {[%emt 0:01:06]} 15. Bxd6 {[%emt 0:00:59]} Qxd6 {[%emt 0:00:47]} 16. e3 {[%emt 0:00:46]} Rac8 {[%emt 0:01:34]} 17. Qb4 {[%emt 0:01:18]} c5 {[%emt 0:01:51]} 18. dxc5 {[%emt 0:00:53]} bxc5 {[%emt 0:00:42]} 19. Qa3 {[%emt 0:00:39]} Re7 {[%emt 0:02:05]} 20. Na4 {[%emt 0:01:05]} Rec7 {[%emt 0:00:32]} 21. Rc2 {[%emt 0:01:18]} Qf8 {[%emt 0:02:13]} 22. Rec1 {[%emt 0:01:18]} c4 {[%emt 0:00:27]} 23. Qxf8+ {[%emt 0:00:28]} Kxf8 {[%emt 0:00:27]} 24. Ne5 {[%emt 0:00:38]} Ke7 {[%emt 0:01:33]} 25. Nb6 {[%emt 0:01:17]} Rb8 {[%emt 0:00:50]} 26. f4 {[%emt 0:02:01]} Rc5 {[%emt 0:01:57]} 27. Na4 {[%emt 0:01:14]} Ra5 {[%emt 0:01:17]} 28. Nc3 {[%emt 0:00:27]} Ba8 {[%emt 0:00:34]} 29. Rd1 {[%emt 0:00:27]} Nc7 {[%emt 0:01:00]} 30. Rcd2 {[%emt 0:00:52]} Rc5 {[%emt 0:00:53]} 31. g4 {[%emt 0:00:44]} Nb5 {[%emt 0:01:15]} 32. g5 {[%emt 0:00:28]} Nxc3 {[%emt 0:00:30]} 33. bxc3 {[%emt 0:00:34]} Nd7 {[%emt 0:00:39]} 34. Nxd7 Kxd7 35. Bxd5 {[%emt 0:02:03]} Bxd5 {[%emt 0:01:22]} 36. Rxd5+ {[%emt 0:00:33]} Rxd5 {[%emt 0:00:27]} 37. Rxd5+ {[%emt 0:00:26]} Ke7 {[%emt 0:00:57]} 38. Rc5 {[%emt 0:00:50]} Rb2 {[%emt 0:00:42]} 39. a4 {[%emt 0:00:38]} Re2 {[%emt 0:00:37]} 40. Rxc4 {[%emt 0:00:46]} Rxe3 {[%emt 0:00:26]} 41. Kf2 {[%emt 0:00:31]} Rh3 {[%emt 0:00:26]} 42. Rc6 {[%emt 0:00:30]} Rxh2+ {[%emt 0:00:30]} 43. Ke3 {[%emt 0:00:26]} Rh3+ {[%emt 0:00:33]} 44. Kd4 {[%emt 0:00:32]} Rf3 {[%emt 0:00:35]} 45. Ke4 {[%emt 0:00:27]} Kd7 {[%emt 0:00:27]} 46. Rc5 {[%emt 0:01:23]} Rh3 {[%emt 0:00:26]} 47. c4 {[%emt 0:00:28]} Rc3 {[%emt 0:00:36]} 48. Kd4 {[%emt 0:00:33]} Rf3 {[%emt 0:00:27]} 49. Rf5 {[%emt 0:00:27]} Ke6 {[%emt 0:00:33]} 50. Re5+ {[%emt 0:00:26]} Kd7 {[%emt 0:00:28]} 51. Ke4 {[%emt 0:01:12]} Rc3 {[%emt 0:00:26]} 52. Kd5 {[%emt 0:00:28]} Ra3 {[%emt 0:00:30]} 53. c5 {[%emt 0:00:26]} Rxa4 {[%emt 0:00:30]} 54. c6+ {[%emt 0:00:28]} Kd8 {[%emt 0:00:30]} 55. c7+ Kxc7 {[%emt 0:00:34]} 56. Re7+ {[%emt 0:01:55]} Kd8 {[%emt 0:00:30]} 57. Rxf7 {[%emt 0:00:26]} Ke8 {[%emt 0:00:32]} 58. Rxg7 {[%emt 0:00:31]} Rxf4 {[%emt 0:00:26]} 59. Ke6 {[%emt 0:00:35]} Re4+ {[%emt 0:00:31]} 60. Kf6 {[%emt 0:00:27]} Rf4+ {[%emt 0:00:31]} 61. Ke6 {[%emt 0:00:27]} Re4+ {[%emt 0:00:33]} 62. Kf6 {[%emt 0:00:26]} Rf4+ {[%emt 0:00:30]} 1/2-1/2